[Event "FIDE CB Open 2022"]
[Site "Ceske Budejovice"]
[Date "2022.07.05"]
[Round "5.14"]
[White "Simek, Petr"]
[Black "Prazak, Daniel"]
[Result "1-0"]
[ECO "D30"]
[WhiteElo "2348"]
[BlackElo "2113"]
[Annotator "TA"]
[PlyCount "79"]
[EventDate "2022.07.01"]
[EventType "swiss"]
[EventCountry "CZE"]
[SourceTitle "playchess.com"]
[Source "ChessBase"]
[SourceQuality "1"]
[TimeControl "40/5400+30:1800+30"]

{[%evp 9,79,28,44,35,60,54,63,69,76,58,92,63,68,30,112,76,87,17,17,13,14,2,10,-166,-166,-158,167,165,167,157,152,129,214,221,207,228,233,226,264,247,314,322,358,304,316,314,347,345,368,366,446,450,500,491,517,498,587,621,811,812,951,998,1155,1124,1152,1141,1036,950,1035,1031,1209,1203]} 1. d4 {[%emt 0:01:58]} d5 {[%emt 0:00:33]} 2. c4 {[%emt 0:00:07]} e6 {[%emt 0:00:10]} 3. Nf3 {[%emt 0:00:06]} a6 {[%emt 0:00:34]} 4. Bg5 {[%emt 0:00:17]} Nf6 {[%emt 0:00:29]} 5. e3 {[%emt 0:00:07]} dxc4 {[%emt 0:03:49]} 6. Bxc4 {[%emt 0:00:08] D30: Queen's Gambit Declined: Systems without Nc3.} b5 {[%emt 0:00:59]} 7. Bd3 {[%emt 0:02:31]} Bb7 {[%emt 0:01:14]} 8. a4 {[%emt 0:06:52] White is slightly better.} b4 {[%emt 0:06:00]} 9. Nbd2 {[%emt 0:00:30]} Nbd7 {[%emt 0:01:21]} 10. O-O {[%emt 0:07:01]} Be7 {[%emt 0:04:59] [#]} 11. Rc1 $146 {[%emt 0:03:16]} (11. Bxf6 $5 Nxf6 12. Nb3 $16) ({Predecessor:} 11. Nb3 O-O 12. Rc1 Rc8 13. Qe2 Bd5 14. Nc5 Nxc5 15. dxc5 Ne4 16. Bxe7 Qxe7 17. Bxe4 Bxe4 {0-1 (46) Guo,Q (2396)-Buksa,N (2385) Riadh 2017}) 11... O-O {[%emt 0:06:03]} (11... c5 $11 {remains equal.}) 12. Qe2 {[%emt 0:15:28] White is more active.} c5 {[%emt 0:18:31]} 13. e4 {[%emt 0:04:00]} (13. Bxf6 $16 gxf6 14. Be4) 13... cxd4 $11 {[%emt 0:13:45]} 14. e5 {[%emt 0:00:08]} Nd5 {[%emt 0:01:36] [#]} ({But not} 14... Ng4 15. Bxe7 Qxe7 16. h3 $16) 15. Qe4 $1 {[%emt 0:01:18][%csl Gd3][%cal Re4h7]} g6 {[%emt 0:03:36]} 16. Qh4 {[%emt 0:01:36] [#]} (16. Bxe7 $11 Qxe7 17. Qxd4) 16... Nxe5 $1 $19 {[%emt 0:07:47][%mdl 512]} 17. Bxe7 {[%emt 0:03:52] [#]} Qxe7 {[%emt 0:01:40]} (17... Nxf3+ $1 $17 {stays on course.} 18. Nxf3 Qxe7 19. Qxd4 Rfd8) 18. Qxe7 $40 {[%emt 0:01:38][%mdl 128] White attacks with force. White stays focused until the end.} Nxf3+ {[%emt 0:00:13]} 19. gxf3 {[%emt 0:00:39]} (19. Nxf3 $2 Nxe7 20. Rc4 Bxf3 21. gxf3 a5 22. Rxd4 Nc6 $17) 19... Nxe7 {[%emt 0:00:16]} 20. Rc7 {[%emt 0:00:05][%csl LRb7,LRe7]} Bxf3 {[%emt 0:00:57]} 21. Nxf3 {[%emt 0:00:31]} ({Don't take} 21. Rxe7 $6 Bc6 $16) 21... Nd5 {[%emt 0:00:31]} 22. Rc6 {[%emt 0:09:26]} a5 {[%emt 0:03:11]} 23. Nxd4 {[%emt 0:12:29]} Rad8 {[%emt 0:08:16]} 24. Bb5 {[%emt 0:00:48]} Nf4 {[%emt 0:02:06]} 25. Nb3 {[%emt 0:00:39]} Rd5 {[%emt 0:01:28]} 26. Rc5 {[%emt 0:01:52]} Rxc5 {[%emt 0:02:13]} 27. Nxc5 {[%emt 0:00:02]} Rc8 {[%emt 0:01:09]} 28. Rc1 {[%emt 0:01:00]} Rd8 {[%emt 0:00:35]} 29. Nb3 {[%emt 0:01:22]} Rd5 {[%emt 0:00:21]} 30. Nxa5 {[%emt 0:05:58] White is clearly winning.} Rg5+ {[%emt 0:00:57]} 31. Kf1 {[%emt 0:03:59]} Nh3 {[%emt 0:02:43] And now ...Rg1+ would win.} 32. Rc2 {[%emt 0:07:19]} h5 {[%emt 0:01:23]} 33. Nb3 {[%emt 0:01:30]} Rg1+ {[%emt 0:03:23]} 34. Ke2 {[%emt 0:00:02]} Nf4+ {[%emt 0:00:10]} 35. Kf3 {[%emt 0:00:59]} e5 {[%emt 0:00:42]} 36. a5 {[%emt 0:01:07]} g5 {[%emt 0:00:49]} 37. Ke4 {[%emt 0:05:17]} Kg7 {[%emt 0:00:57]} 38. Kxe5 {[%emt 0:01:02]} Rd1 {[%emt 0:01:09]} 39. Rd2 {[%emt 0:00:16]} f6+ {[%emt 0:00:07]} 40. Kd6 {[%emt 0:00:27] Weighted Error Value: White=0.27 (precise) /Black=0.47} 1-0

[Event "FIDE CB Open 2022"]
[Site "Ceske Budejovice"]
[Date "2022.07.05"]
[Round "5.15"]
[White "Pirola, Claudionor Alcides L"]
[Black "Dotzer, Lukas"]
[Result "1/2-1/2"]
[ECO "B48"]
[WhiteElo "2100"]
[BlackElo "2269"]
[Annotator "TA"]
[PlyCount "53"]
[EventDate "2022.07.01"]
[EventType "swiss"]
[EventCountry "CZE"]
[SourceTitle "playchess.com"]
[Source "ChessBase"]
[SourceQuality "1"]
[TimeControl "40/5400+30:1800+30"]

{[%evp 16,53,12,11,66,78,95,104,156,181,173,169,254,297,279,238,289,221,350,262,454,324,458,450,645,639,607,551,662,465,662,662,909,893,1058,1017,1591,1420,2087,2038]} 1. e4 {[%emt 0:00:04]} c5 {[%emt 0:00:05]} 2. Nf3 {[%emt 0:00:07]} e6 {[%emt 0:00:05]} 3. d4 {[%emt 0:00:08]} cxd4 {[%emt 0:00:07]} 4. Nxd4 {[%emt 0:00:08]} Nc6 {[%emt 0:00:01]} 5. Nc3 {[%emt 0:01:04]} Qc7 {[%emt 0:00:13]} 6. Be3 {[%emt 0:00:11]} a6 {[%emt 0:00:06]} 7. Qd2 {[%emt 0:00:08]} Nf6 {[%emt 0:00:43]} 8. O-O-O {[%emt 0:00:09]} Bb4 {[%emt 0:01:58]} 9. f3 {[%emt 0:00:25]} b5 {[%emt 0:10:24] B48: Sicilian: Taimanov: 5 Nc3 Qc7 6 Be3 a6 without Be2.} (9... Ne5 $11) 10. Bf4 $14 {[%emt 0:02:04][%cal Be3f4,Bf4e5,Be5d6][%mdl 32]} e5 {[%emt 0:07:53]} 11. Nxc6 {[%emt 0:00:55]} dxc6 {[%emt 0:00:07] [#]} ({Better is} 11... Bxc3 12. Qxc3 exf4) 12. Bxe5 $1 $16 {[%emt 0:00:36][%mdl 512] [#]} Qe7 $146 {[%emt 0:15:57]} ({Predecessor:} 12... Qa5 13. a3 Be6 14. axb4 Qa1+ 15. Nb1 Ba2 16. Qd6 Qxb1+ 17. Kd2 Qxd1+ 18. Kxd1 Rd8 19. Qxd8+ Kxd8 20. Bxf6+ gxf6 21. b3 {1-0 (21) Seyb,A (2243)-Uhlmann,D (1987) Nuremberg 2008}) 13. a3 {[%emt 0:02:27]} Ba5 {[%emt 0:04:18]} (13... Bc5 {is a better defense.} 14. Qg5 Nh5 15. Qxe7+ (15. Qxh5 g6 $16) 15... Kxe7) 14. Bd6 $18 {[%emt 0:03:41]} Qe6 {[%emt 0:04:45]} 15. b4 {[%emt 0:04:42]} Bb6 {[%emt 0:01:03]} 16. e5 {[%emt 0:16:10] aiming for Bc5.} (16. Bc5 $6 Bc7 17. Be2 Nd7 $18) 16... Nd7 {[%emt 0:03:19] Prevents Bc5.} (16... Nd5 $142 17. Nxd5 cxd5 18. Qxd5 Qxd5 19. Rxd5 Be6) 17. a4 {[%emt 0:07:58]} bxa4 $2 {[%emt 0:05:53]} (17... a5 18. bxa5 (18. axb5 axb4 19. Nb1 Ra1 $16) 18... Bxa5 19. axb5 Bb7 20. bxc6 Bxc6) 18. Qf4 {[%emt 0:05:08] Threatens to win with Bc4.} (18. Qg5 Qh6 19. Qxh6 gxh6 20. Nxa4 Rg8 $18) 18... Nf8 {[%emt 0:18:14]} (18... Qh6 $142 19. Qxh6 gxh6 20. Nxa4 Be3+ 21. Kb1 Nb6) 19. Nxa4 {[%emt 0:01:57] White is clearly winning.} Qf5 {[%emt 0:02:32]} (19... Ba7 $142 20. Kb1 Qd7) 20. Qd2 {[%emt 0:02:34] Active counter play!} Bd8 {[%emt 0:00:38]} 21. h4 {[%emt 0:02:13] Prevents Bg5.} (21. Bxf8 Bg5 22. Bxg7 (22. f4 $2 Bxf4 23. Bd6 Be6 $19) 22... Bxd2+ 23. Rxd2 Qf4 $11) 21... Ng6 {[%emt 0:03:58]} 22. g3 {[%emt 0:01:26] Prevents Qf4. And now Qc3 would win.} Qxf3 {[%emt 0:00:41] [#]} (22... Ne7 $142 23. Bh3 Qxf3) 23. Kb2 $1 {[%emt 0:07:56]} Qxg3 {[%emt 0:09:00]} (23... Qxh1 24. Bg2) 24. Bg2 {[%emt 0:02:41]} Bb7 {[%emt 0:03:26]} 25. Nc5 {[%emt 0:01:18]} Nf4 {[%emt 0:03:14]} 26. Be4 {[%emt 0:03:46]} f5 {[%emt 0:00:53]} 27. Rdg1 {[%emt 0:01:07][%mdl 32832] Trapped Piece. White took control after the opening.  Weighted Error Value: White=0.41/Black=0.86. An unexpected result.} 1/2-1/2

[Event "FIDE CB Open 2022"]
[Site "Ceske Budejovice"]
[Date "2022.07.05"]
[Round "5.16"]
[White "Slaby, Matej"]
[Black "Kratochvil, Vit"]
[Result "0-1"]
[ECO "A48"]
[WhiteElo "1796"]
[BlackElo "2237"]
[Annotator "TA"]
[PlyCount "154"]
[EventDate "2022.07.01"]
[EventType "swiss"]
[EventCountry "CZE"]
[SourceTitle "playchess.com"]
[Source "ChessBase"]
[SourceQuality "1"]
[TimeControl "40/5400+30:1800+30"]

{[%evp 10,154,10,-7,9,8,7,25,16,10,8,-4,2,-19,-23,-37,10,-10,-17,-17,-17,-16,-16,-44,-16,-45,-12,-17,0,0,0,0,0,0,0,0,0,0,0,-8,0,0,-6,0,0,-7,-2,-7,0,-1,0,0,-15,-23,52,36,79,79,121,40,51,45,51,0,52,52,98,89,91,78,98,101,96,75,97,89,98,93,111,102,124,63,123,131,143,132,145,139,147,138,140,141,137,81,152,107,166,-194,-188,-717,-200,-199,-198,-245,-240,-241,-205,-250,-220,-270,-267,-343,-331,-317,-306,-337,-290,-385,-361,-427,-420,-403,-386,-682,-681,-690,-671,-666,-658,-629,-555,-753,-716,-29980,-29981,-29981,-29981,-29985,-29985,-29988,-29989,-29989,-29990,-29990,-29991,-29991,-29992]} 1. Nf3 {[%emt 0:00:38]} c5 {[%emt 0:00:35]} 2. c3 {[%emt 0:00:08]} Nf6 {[%emt 0:02:01]} 3. d4 {[%emt 0:00:06]} b6 {[%emt 0:01:14]} 4. e3 {[%emt 0:00:32]} g6 {[%emt 0:06:58]} 5. Nbd2 {[%emt 0:00:29]} Bg7 {[%emt 0:00:47]} 6. Bd3 {[%emt 0:00:16]} O-O {[%emt 0:01:09] A48: 1 d4 Nf6 2 Nf3 g6: Torre, London and Colle Systems.} 7. O-O {[%emt 0:00:13]} Ba6 {[%emt 0:06:20]} 8. Bxa6 {[%emt 0:01:36]} Nxa6 {[%emt 0:02:28] White has an edge.} 9. Qe2 {[%emt 0:00:30]} Qc8 {[%emt 0:03:04]} 10. a4 {[%emt 0:02:56]} Qb7 {[%emt 0:05:43] [#]} 11. h3 $146 {[%emt 0:03:01]} ({Predecessor:} 11. Ne5 d6 12. Nd3 Rac8 13. f4 e6 14. Nf2 cxd4 15. exd4 d5 16. Nf3 Nb8 17. Re1 {0-1 (55) Kuffner,W-Reinhard,M (2170) Wuerzburg 1995}) 11... Rfc8 {[%emt 0:04:57]} 12. Re1 {[%emt 0:00:53]} Nc7 {[%emt 0:08:39]} (12... d5 $15) 13. Ne5 {[%emt 0:04:01]} Ne6 {[%emt 0:08:12]} 14. Qf3 {[%emt 0:03:16]} Rab8 {[%emt 0:09:00][%cal Ba8b8,Bb8b7,Bb7c7][%mdl 32]} 15. Qxb7 {[%emt 0:04:00]} Rxb7 {[%emt 0:00:02]} 16. Ndf3 {[%emt 0:00:03]} Rbc7 {[%emt 0:10:31]} 17. Nd2 {[%emt 0:03:20]} Nd5 {[%emt 0:05:18]} 18. Nef3 {[%emt 0:01:12]} cxd4 {[%emt 0:02:25]} 19. exd4 {[%emt 0:00:08]} Nef4 {[%emt 0:08:28]} 20. Nb3 {[%emt 0:01:22]} Nd3 {[%emt 0:03:43]} 21. Rd1 {[%emt 0:03:28]} Nxc1 {[%emt 0:00:36]} 22. Nxc1 {[%emt 0:00:56]} d6 {[%emt 0:01:14]} 23. Nd3 {[%emt 0:00:46]} Bh6 {[%emt 0:04:04]} 24. Re1 {[%emt 0:00:56]} a6 {[%emt 0:01:18]} 25. Kf1 {[%emt 0:01:01]} Rb7 {[%emt 0:03:10]} 26. Ra3 {[%emt 0:00:52]} Rc4 {[%emt 0:00:44]} 27. Rea1 {[%emt 0:00:40]} f6 {[%emt 0:00:34]} 28. Re1 {[%emt 0:02:34]} Kf7 {[%emt 0:00:26]} 29. g3 {[%emt 0:01:50]} b5 {[%emt 0:00:43]} 30. axb5 {[%emt 0:00:07]} axb5 {[%emt 0:00:01]} 31. Rea1 {[%emt 0:00:43]} Rc6 {[%emt 0:00:57]} (31... b4 $11 32. Rb3 Rb6) 32. Nfe1 $14 {[%emt 0:00:35]} Bf8 {[%emt 0:00:34]} 33. Nc2 {[%emt 0:00:19]} e5 {[%emt 0:00:28]} 34. Rb3 {[%emt 0:00:22]} (34. Ndb4 $16 Nxb4 35. Nxb4) 34... Rc8 {[%emt 0:00:30]} 35. Ra5 {[%emt 0:00:33]} Nc7 {[%emt 0:00:33]} 36. Na3 {[%emt 0:01:40]} (36. Rba3 $14) 36... Rcb8 {[%emt 0:00:27]} (36... exd4 $11 37. cxd4 f5) 37. Nb4 $1 {[%emt 0:00:18][%cal Bd3b4,Bb4c6,Bc6a7][%mdl 32]} d5 {[%emt 0:00:29]} (37... Rc8 $14) 38. Nc6 $16 {[%emt 0:00:23] Pair of Knights!} Rc8 {[%emt 0:00:15][%cal Ob5b4]} 39. dxe5 {[%emt 0:00:23]} Bxa3 {[%emt 0:00:46]} 40. Rbxa3 {[%emt 0:00:47] aiming for Ra7.} Rb6 {[%emt 0:00:29]} 41. Na7 {[%emt 0:32:58]} Rcb8 {[%emt 0:20:18]} 42. exf6 $1 {[%emt 0:00:00]} Kxf6 {[%emt 0:00:06]} 43. Rb3 {[%emt 0:00:00]} Ke6 {[%emt 0:01:21]} 44. Rb4 {[%emt 0:00:00]} Kd6 {[%emt 0:06:59] [#]} 45. Rh4 {[%emt 0:00:00]} ({Better is} 45. Rf4 $1 $16) 45... h5 {[%emt 0:00:17] [#]} (45... Rh8 $1 $14) 46. Rf4 $1 {[%emt 0:00:00]} Ke6 {[%emt 0:00:23]} 47. Kg2 {[%emt 0:00:00]} Ra8 {[%emt 0:03:01]} 48. g4 {[%emt 0:00:00]} hxg4 {[%emt 0:00:38]} 49. hxg4 {[%emt 0:00:00]} ({Much less strong is} 49. Rxg4 Kf7 $16) 49... Rab8 {[%emt 0:01:14]} 50. g5 {[%emt 0:00:00]} Ke7 {[%emt 0:00:42]} 51. Ra1 {[%emt 0:00:00]} ({White should play} 51. Kg3) 51... Ra8 {[%emt 0:00:33]} (51... Ne6 $142 52. Rf6 Rf8) 52. Rb4 {[%emt 0:00:00]} Kd7 {[%emt 0:00:19]} (52... Kf7 $16 {was worth a try.}) 53. Ra5 $4 {[%emt 0:00:00][%mdl 8192]} (53. Rh4 $18 {is the narrow road to win.}) 53... Rb7 $19 {[%emt 0:00:38] Black converts the advantage convincingly.} 54. Rbxb5 $2 {[%emt 0:00:00]} (54. Rf4 Raxa7 55. Rxa7 Rxa7 56. Rf7+ Kd6 57. Kg3) 54... Rbxa7 $2 {[%emt 0:00:24]} (54... Nxb5 55. Rxb5 Raxa7 56. Rxd5+ Ke6) 55. Rxa7 {[%emt 0:00:00]} Rxa7 {[%emt 0:00:04][%mdl 4096] Endgame KRN-KR} 56. Rb6 {[%emt 0:00:00]} (56. Rb8 {was called for.}) 56... Ne6 {[%emt 0:00:17]} 57. Kg3 {[%emt 0:00:00]} Ra4 {[%emt 0:00:43] Prevents f4.} ({Inferior is} 57... Nxg5 58. Rxg6 Nf7 59. Kf4) 58. b3 {[%emt 0:00:00]} Re4 {[%emt 0:00:52]} 59. f3 {[%emt 0:00:00]} Re5 {[%emt 0:00:30]} 60. Rb4 {[%emt 0:00:00]} Nxg5 {[%emt 0:00:42]} 61. Rb7+ {[%emt 0:00:00]} Ke8 {[%emt 0:00:32]} 62. Rg7 {[%emt 0:00:00]} Re6 {[%emt 0:00:07]} 63. b4 {[%emt 0:00:10]} Nf7 {[%emt 0:00:20]} 64. Rg8+ {[%emt 0:00:16]} Kd7 {[%emt 0:00:42]} 65. Ra8 {[%emt 0:01:34]} Rc6 {[%emt 0:00:35]} 66. Ra7+ $2 {[%emt 0:00:25]} (66. Ra3) 66... Ke6 {[%emt 0:00:30]} 67. Ra3 {[%emt 0:00:15]} Nd6 {[%emt 0:00:10]} 68. Kf4 {[%emt 0:01:01]} Nb5 {[%emt 0:00:42][%csl LRa3,LRc3]} 69. Ra5 {[%emt 0:00:10]} Nxc3 {[%emt 0:00:19] Threatens to win with ...d4.} 70. b5 {[%emt 0:00:09]} Rb6 {[%emt 0:00:54] And now ...d4 would win.} 71. Ra6 {[%emt 0:00:24]} Rxa6 {[%emt 0:00:04] Black mates.} 72. bxa6 {[%emt 0:00:02] KN-KPP} Nb5 {[%emt 0:00:06]} 73. Kg5 {[%emt 0:00:32]} d4 {[%emt 0:01:03]} 74. Kxg6 {[%emt 0:00:23]} d3 {[%emt 0:00:05]} 75. f4 {[%emt 0:00:04]} d2 {[%emt 0:00:04]} 76. f5+ {[%emt 0:00:03]} Kd7 {[%emt 0:00:58]} 77. f6 {[%emt 0:00:12]} d1=Q {[%emt 0:00:06] Weighted Error Value: White=0.42/Black=0.26 (precise)} 0-1

[Event "FIDE CB Open 2022"]
[Site "Ceske Budejovice"]
[Date "2022.07.05"]
[Round "5.17"]
[White "Abdulla, Khayala"]
[Black "Hladky, Tadeas"]
[Result "0-1"]
[ECO "D02"]
[WhiteElo "2207"]
[BlackElo "2095"]
[Annotator "TA"]
[PlyCount "134"]
[EventDate "2022.07.01"]
[EventType "swiss"]
[EventCountry "CZE"]
[SourceTitle "playchess.com"]
[Source "ChessBase"]
[SourceQuality "1"]
[TimeControl "40/5400+30:1800+30"]

{[%evp 9,134,0,0,2,8,0,0,0,0,0,0,0,58,-56,-32,-52,-58,-46,-33,-110,-103,-106,-118,-150,-134,-164,-105,-147,-126,-127,-127,-137,-127,-130,-126,-135,-131,-135,-116,-110,-113,-119,-130,-142,-143,-141,-141,-148,-144,-170,-163,-165,-154,-177,-163,-194,-190,-238,-219,-283,-279,-385,-367,-366,-341,-324,-210,-261,-215,-214,-223,-222,-229,-228,-215,-279,-256,-236,-282,-329,-306,-354,-358,-401,-382,-659,-644,-739,-676,-1021,-1016,-959,-1145,-1102,-1035,-982,-920,-841,-727,-725,-707,-640,0,-688,-602,-580,-496,-632,-608,-594,-550,-540,-429,-697,-686,-5872,-5312,-5210,-5203,-2687,-1933,-29982,-29983,-29982,-29983,-29985,-29986]} 1. d4 {[%emt 0:00:05]} d5 {[%emt 0:01:41]} 2. Bf4 {[%emt 0:00:17]} Nf6 {[%emt 0:00:07]} 3. e3 {[%emt 0:00:08]} c5 {[%emt 0:00:06]} 4. Nf3 {[%emt 0:00:11]} Nc6 {[%emt 0:00:04]} 5. Nbd2 {[%emt 0:00:34]} Qb6 {[%emt 0:00:16][%csl LRb2,LRd4][%cal Rc5d4]} 6. dxc5 {[%emt 0:01:38] D02: 1 d4 d5 2 Nf3 sidelines, including 2...Nf6 3 g3 and 2...Nf6 3 Bf4.} Qxb2 {[%emt 0:00:08]} 7. Rb1 {[%emt 0:02:15]} Qc3 {[%emt 0:00:07]} 8. Bb5 {[%emt 0:01:03] The position is equal.} e6 {[%emt 0:01:02] 8...g6 is the hot move.} 9. Be5 {[%emt 0:05:08]} Qxc5 {[%emt 0:00:51]} 10. c4 {[%emt 0:04:33]} Bd7 {[%emt 0:08:17] [#]} ({Black should play} 10... a6 $11 11. Bd4 Qd6 12. Bxc6+ Qxc6) 11. Qa4 $146 {[%emt 0:10:18]} (11. Ba4 $1 $14) ({Predecessor:} 11. Bxf6 gxf6 12. cxd5 Qxd5 13. O-O Nd8 14. Qa4 a6 15. Bxd7+ Qxd7 16. Qf4 Be7 17. Ne4 {1-0 (24) Atalik,E (2429)-Toncheva,N (2178) Struga 2021}) 11... Be7 {[%emt 0:18:46]} (11... Nxe5 12. Nxe5 Bxb5 13. Rxb5 $11) (11... a6 $5 {[%cal Ra8c8]} 12. Bd4 Qd6 $15) 12. O-O {[%emt 0:23:38]} O-O {[%emt 0:01:09]} ({Don't do} 12... Nxe5 13. Nxe5 Bxb5 14. Rxb5 $14) 13. cxd5 {[%emt 0:03:53]} Nxd5 {[%emt 0:07:25]} ({Much less strong is} 13... Qxd5 14. Bxf6 gxf6 15. Qg4+ Kh8 16. Bc4 $11) 14. Bxc6 {[%emt 0:06:57] Black continues to play with concentration.} (14. Ba1 $15) 14... Bxc6 {[%emt 0:06:29]} 15. Qg4 {[%emt 0:00:11][%csl Ge5][%cal Rg4g7]} Nf6 {[%emt 0:02:37]} 16. Qg3 {[%emt 0:00:45]} Qc2 {[%emt 0:01:31]} 17. Bd4 {[%emt 0:08:08]} Qg6 {[%emt 0:03:39]} ({Better is} 17... Qxa2 $19 18. Rfd1 Qd5) 18. Qh3 {[%emt 0:07:19]} Qg4 {[%emt 0:05:49]} 19. Qxg4 {[%emt 0:01:04]} Nxg4 {[%emt 0:02:28]} 20. Rfc1 {[%emt 0:00:04]} f6 {[%emt 0:13:17]} 21. Bc5 {[%emt 0:02:24]} Bxc5 {[%emt 0:01:19]} 22. Rxc5 {[%emt 0:00:30] [#]} e5 {[%emt 0:07:50] Inhibits Nd4.} 23. Nb3 {[%emt 0:01:09]} Rac8 {[%emt 0:06:21]} 24. Rbc1 {[%emt 0:02:19]} Bd7 {[%emt 0:02:11]} 25. h3 {[%emt 0:00:30]} Nh6 {[%emt 0:00:16]} 26. Rc7 {[%emt 0:06:19]} Bc6 {[%emt 0:00:35]} 27. Rxc8 {[%emt 0:00:57]} Rxc8 {[%emt 0:00:01]} 28. Ne1 {[%emt 0:03:44]} b6 {[%emt 0:03:22]} 29. f3 {[%emt 0:01:07]} Kf8 {[%emt 0:00:14]} 30. Kf2 {[%emt 0:01:18]} Ke7 {[%emt 0:00:27]} 31. g4 {[%emt 0:00:23]} Nf7 {[%emt 0:00:18]} 32. h4 {[%emt 0:00:51]} Bd7 {[%emt 0:01:05]} 33. Rd1 {[%emt 0:00:16]} (33. Rxc8 $142 Bxc8 34. Nd2) 33... Be6 {[%emt 0:00:38]} 34. Rd3 {[%emt 0:01:21]} Nd6 {[%emt 0:01:17]} 35. e4 {[%emt 0:00:29]} Nb5 {[%emt 0:02:12]} 36. Rd2 {[%emt 0:01:03]} Rc3 {[%emt 0:00:41]} 37. Rb2 {[%emt 0:00:13]} Nd6 {[%emt 0:00:52]} 38. Nd2 {[%emt 0:00:25]} Nc4 {[%emt 0:00:20]} 39. Nxc4 {[%emt 0:00:06]} Rxc4 $19 {[%emt 0:01:09][%mdl 4096] Endgame KRB-KRN} ({Inferior is} 39... Bxc4 40. Nc2) 40. Nc2 {[%emt 0:00:29]} Ra4 {[%emt 0:02:44]} 41. a3 {[%emt 0:31:47]} Kd6 {[%emt 0:30:05]} 42. g5 {[%emt 0:03:24]} Kc5 {[%emt 0:00:00]} 43. gxf6 {[%emt 0:00:00]} gxf6 {[%emt 0:00:00]} 44. Ke3 {[%emt 0:00:00]} a5 {[%emt 0:00:00]} 45. Rb1 {[%emt 0:00:00]} b5 {[%emt 0:00:00][%cal Bb6b5,Bb5b4][%mdl 32]} 46. Ra1 {[%emt 0:00:00]} Bb3 {[%emt 0:00:00]} 47. Ne1 {[%emt 0:00:00]} (47. Kd2 f5 48. exf5) 47... Kb6 {[%emt 0:00:00]} 48. Nd3 {[%emt 0:00:00]} b4 {[%emt 0:00:00]} 49. f4 {[%emt 0:00:00]} Rxa3 {[%emt 0:00:00]} 50. Rc1 {[%emt 0:00:03]} Ba4 {[%emt 0:00:00] Threatens to win with ...Bb5.} 51. fxe5 {[%emt 0:02:01]} fxe5 {[%emt 0:00:00] ( -> ...Bb5)} 52. Kd2 {[%emt 0:00:25]} Ra2+ {[%emt 0:00:00]} 53. Ke3 {[%emt 0:00:34]} Rc2 {[%emt 0:00:00]} 54. Rb1 {[%emt 0:01:44]} Rc3 {[%emt 0:00:00]} 55. Kd2 {[%emt 0:00:03]} Rc2+ {[%emt 0:03:14]} 56. Ke3 {[%emt 0:00:10]} Rh2 {[%emt 0:00:07] And now ...Bc2 would win.} 57. Nxe5 {[%emt 0:00:20]} Rxh4 {[%emt 0:00:08]} 58. Nc4+ {[%emt 0:01:49]} Kb5 {[%emt 0:01:17]} 59. Rc1 {[%emt 0:00:10]} Rh6 {[%emt 0:01:30] Inhibits Nd6+. White must now prevent ...Rc6.} 60. e5 {[%emt 0:00:38]} b3 {[%emt 0:00:34]} 61. Nd6+ {[%emt 0:02:34]} (61. Nb2 $142 Rh2 62. Rb1) 61... Kb4 {[%emt 0:00:03]} 62. Rc8 {[%emt 0:00:23] [#]} Rxd6 $1 {[%emt 0:02:31]} 63. exd6 {[%emt 0:00:17]} (63. Rb8+ Ka3) 63... b2 {[%emt 0:00:04]} 64. Rb8+ {[%emt 0:00:32]} Ka3 {[%emt 0:00:03] ...Ka2 is the strong threat.} 65. Kd2 {[%emt 0:01:19]} Ka2 {[%emt 0:00:05] Black mates.} 66. d7 {[%emt 0:00:40]} Bxd7 {[%emt 0:00:07]} 67. Kc2 {[%emt 0:00:21]} Bf5+ {[%emt 0:00:11] Weighted Error Value: White=0.34/Black=0.21 (precise)} 0-1